[Event "*** SCC Grand Prix: Titled Tuesday Blitz"]
[Site "Chess.com"]
[Date "2020.07.14"]
[Round "10"]
[White "ClassyEl"]
[Black "okriak"]
[Result "0-1"]
[WhiteElo "2538"]
[BlackElo "2693"]
[TimeControl "180+1"]
[EndTime "11:59:11 PDT"]
[Termination "okriak won on time"]

1. d4 {[%clk 0:03:00.9]} 1... d6 {[%clk 0:02:29.5]} 2. Nf3 {[%clk 0:02:58.2]}
2... Bg4 {[%clk 0:02:27]} 3. c4 {[%clk 0:02:57.2]} 3... Bxf3 {[%clk 0:02:25.7]}
4. exf3 {[%clk 0:02:57.1]} 4... c6 {[%clk 0:02:25.9]} 5. Nc3 {[%clk 0:02:56.9]}
5... Nf6 {[%clk 0:02:25.8]} 6. Be3 {[%clk 0:02:56]} 6... e6 {[%clk 0:02:25.1]}
7. d5 {[%clk 0:02:49.6]} 7... Nbd7 {[%clk 0:02:24.7]} 8. f4 {[%clk 0:02:47.6]}
8... g6 {[%clk 0:02:24.2]} 9. g3 {[%clk 0:02:45.1]} 9... exd5 {[%clk 0:02:23.4]}
10. cxd5 {[%clk 0:02:44.7]} 10... c5 {[%clk 0:02:24]} 11. Bg2 {[%clk 0:02:39.3]}
11... Bg7 {[%clk 0:02:23.7]} 12. O-O {[%clk 0:02:39.3]} 12... O-O {[%clk
0:02:23.5]} 13. h3 {[%clk 0:02:30.1]} 13... Re8 {[%clk 0:02:22.9]} 14. Qc2
{[%clk 0:02:27.6]} 14... a6 {[%clk 0:02:19.2]} 15. a4 {[%clk 0:02:27.2]} 15...
Nh5 {[%clk 0:02:18.2]} 16. g4 {[%clk 0:02:18.5]} 16... Nhf6 {[%clk 0:02:17.3]}
17. f5 {[%clk 0:02:18.7]} 17... Ne5 {[%clk 0:02:15.1]} 18. Bf4 {[%clk 0:02:15]}
18... Nfd7 {[%clk 0:02:10.5]} 19. fxg6 {[%clk 0:02:09.6]} 19... hxg6 {[%clk
0:02:10.1]} 20. Bg3 {[%clk 0:02:09.7]} 20... Nb6 {[%clk 0:01:58.1]} 21. b3
{[%clk 0:01:57.2]} 21... c4 {[%clk 0:01:55.4]} 22. bxc4 {[%clk 0:01:22.2]} 22...
Rc8 {[%clk 0:01:54.4]} 23. Qb3 {[%clk 0:01:09.2]} 23... Nbxc4 {[%clk 0:01:47.4]}
24. Ne4 {[%clk 0:00:54.4]} 24... Na5 {[%clk 0:01:41.1]} 25. Qb4 {[%clk
0:00:49.5]} 25... Nd3 {[%clk 0:01:22]} 26. Qxd6 {[%clk 0:00:47]} 26... Bxa1
{[%clk 0:01:20.7]} 27. Rxa1 {[%clk 0:00:45.5]} 27... Kg7 {[%clk 0:01:16.5]} 28.
Qa3 {[%clk 0:00:40]} 28... Qxd5 {[%clk 0:01:08.6]} 29. Nd6 {[%clk 0:00:37.4]}
29... Qd4 {[%clk 0:01:07.8]} 30. Nxe8+ {[%clk 0:00:29.4]} 30... Rxe8 {[%clk
0:01:07.2]} 31. Rd1 {[%clk 0:00:28.1]} 31... Re1+ {[%clk 0:01:02.3]} 32. Rxe1
{[%clk 0:00:28.1]} 32... Nxe1 {[%clk 0:01:02.9]} 33. Qe7 {[%clk 0:00:26.4]}
33... Nd3 {[%clk 0:00:56.8]} 34. Bd6 {[%clk 0:00:23.5]} 34... Qxf2+ {[%clk
0:00:53.9]} 35. Kh2 {[%clk 0:00:23.9]} 35... Nc4 {[%clk 0:00:45.6]} 36. Bg3
{[%clk 0:00:17.4]} 36... Qc5 {[%clk 0:00:37.5]} 37. Qxb7 {[%clk 0:00:13.1]}
37... Ne3 {[%clk 0:00:30.1]} 38. Qxa6 {[%clk 0:00:13.1]} 38... Nxg2 {[%clk
0:00:25.1]} 39. Qxd3 {[%clk 0:00:12.9]} 39... Ne3 {[%clk 0:00:24.1]} 40. a5
{[%clk 0:00:07.5]} 40... f5 {[%clk 0:00:18.6]} 41. a6 {[%clk 0:00:05.8]} 41...
fxg4 {[%clk 0:00:18.4]} 42. Bd6 {[%clk 0:00:05.8]} 42... Qa7 {[%clk 0:00:14.2]}
43. Be5+ {[%clk 0:00:05.7]} 43... Kh7 {[%clk 0:00:14.4]} 44. h4 {[%clk
0:00:03.9]} 44... Nf5 {[%clk 0:00:14.1]} 0-1

[Event "*** SCC Grand Prix: Titled Tuesday Blitz"]
[Site "Chess.com"]
[Date "2020.07.14"]
[Round "10"]
[White "Batica1984"]
[Black "theblitzchamp"]
[Result "1-0"]
[WhiteElo "2883"]
[BlackElo "2671"]
[TimeControl "180+1"]
[EndTime "11:59:14 PDT"]
[Termination "Batica1984 won by resignation"]

1. e4 {[%clk 0:03:00.9]} 1... d6 {[%clk 0:02:58.7]} 2. d4 {[%clk 0:03:00.4]}
2... Nf6 {[%clk 0:02:59]} 3. Nc3 {[%clk 0:02:59.8]} 3... g6 {[%clk 0:02:59.2]}
4. Bg5 {[%clk 0:02:56.4]} 4... Bg7 {[%clk 0:02:56.8]} 5. Qd2 {[%clk 0:02:56]}
5... h6 {[%clk 0:02:57.3]} 6. Bh4 {[%clk 0:02:55.7]} 6... g5 {[%clk 0:02:58]} 7.
Bg3 {[%clk 0:02:55.8]} 7... Nh5 {[%clk 0:02:58.5]} 8. O-O-O {[%clk 0:02:52.9]}
8... a6 {[%clk 0:02:50.7]} 9. Be2 {[%clk 0:02:39.4]} 9... Nxg3 {[%clk 0:02:50]}
10. hxg3 {[%clk 0:02:40.3]} 10... Nc6 {[%clk 0:02:49.5]} 11. Qe3 {[%clk
0:02:39]} 11... e5 {[%clk 0:02:36.2]} 12. dxe5 {[%clk 0:02:37.1]} 12... Nxe5
{[%clk 0:02:34.3]} 13. f4 {[%clk 0:02:23.8]} 13... Nc6 {[%clk 0:02:33.5]} 14.
Nf3 {[%clk 0:02:15.3]} 14... Bg4 {[%clk 0:02:13.9]} 15. e5 {[%clk 0:02:00.4]}
15... gxf4 {[%clk 0:01:20]} 16. gxf4 {[%clk 0:01:57.2]} 16... Ne7 {[%clk
0:01:19.2]} 17. exd6 {[%clk 0:01:49.3]} 17... cxd6 {[%clk 0:01:19.2]} 18. Ne5
{[%clk 0:01:20.6]} 18... Bxe2 {[%clk 0:01:11.1]} 19. Qxe2 {[%clk 0:01:17.5]}
19... Qc7 {[%clk 0:00:17.5]} 20. Nc4 {[%clk 0:01:02.7]} 20... O-O-O {[%clk
0:00:17.3]} 21. Nd5 {[%clk 0:00:52.9]} 21... Nxd5 {[%clk 0:00:17.3]} 22. Rxd5
{[%clk 0:00:53.8]} 22... Kb8 {[%clk 0:00:17.2]} 23. Qd3 {[%clk 0:00:51.5]} 23...
Rd7 {[%clk 0:00:16.1]} 24. Rd1 {[%clk 0:00:50.3]} 24... Rc8 {[%clk 0:00:15.8]}
25. Ne3 {[%clk 0:00:40.5]} 25... Qb6 {[%clk 0:00:15.2]} 26. Qb3 {[%clk
0:00:36.7]} 26... Qc6 {[%clk 0:00:13.8]} 27. Nf5 {[%clk 0:00:36.1]} 27... Bf8
{[%clk 0:00:13.1]} 28. g4 {[%clk 0:00:35.5]} 28... Rdc7 {[%clk 0:00:12.4]} 29.
c3 {[%clk 0:00:33.7]} 29... Qc4 {[%clk 0:00:11.5]} 30. Qxc4 {[%clk 0:00:32]}
30... Rxc4 {[%clk 0:00:12.4]} 31. R1d4 {[%clk 0:00:32]} 31... Rxd4 {[%clk
0:00:11.3]} 32. Rxd4 {[%clk 0:00:32.2]} 32... Rc5 {[%clk 0:00:11.8]} 33. Kd2
{[%clk 0:00:25.2]} 33... h5 {[%clk 0:00:12]} 34. b4 {[%clk 0:00:21.6]} 34... Rb5
{[%clk 0:00:06.2]} 35. a4 {[%clk 0:00:20.8]} 35... Rxf5 {[%clk 0:00:06]} 36.
gxf5 {[%clk 0:00:20.7]} 36... Kc7 {[%clk 0:00:06.9]} 37. Rd5 {[%clk 0:00:19.5]}
37... Be7 {[%clk 0:00:06.1]} 38. f6 {[%clk 0:00:19]} 38... Bxf6 {[%clk
0:00:06.7]} 39. Rf5 {[%clk 0:00:19.5]} 39... Bd8 {[%clk 0:00:05.1]} 40. Rxf7+
{[%clk 0:00:19.6]} 40... Kc6 {[%clk 0:00:05.6]} 41. Rh7 {[%clk 0:00:19.6]} 41...
h4 {[%clk 0:00:05.8]} 42. c4 {[%clk 0:00:19.8]} 42... b5 {[%clk 0:00:06.2]} 43.
cxb5+ {[%clk 0:00:19.5]} 43... axb5 {[%clk 0:00:07.1]} 44. a5 {[%clk 0:00:19.9]}
44... Kd5 {[%clk 0:00:06.4]} 45. Kd3 {[%clk 0:00:20.2]} 45... Kc6 {[%clk
0:00:05.7]} 46. Ke4 {[%clk 0:00:20]} 46... Bf6 {[%clk 0:00:05.8]} 47. Kf5 {[%clk
0:00:18.7]} 47... Bc3 {[%clk 0:00:06]} 48. a6 {[%clk 0:00:16.8]} 48... Bd4
{[%clk 0:00:03.5]} 49. a7 {[%clk 0:00:16.1]} 49... Bxa7 {[%clk 0:00:04.1]} 50.
Rxa7 {[%clk 0:00:16.2]} 50... h3 {[%clk 0:00:05]} 51. Rh7 {[%clk 0:00:15.8]}
51... h2 {[%clk 0:00:05.9]} 52. Rxh2 {[%clk 0:00:15.6]} 52... Kd5 {[%clk
0:00:06.5]} 1-0

[Event "*** SCC Grand Prix: Titled Tuesday Blitz"]
[Site "Chess.com"]
[Date "2020.07.14"]
[Round "10"]
[White "freshfoodcompany"]
[Black "benko_008"]
[Result "1-0"]
[WhiteElo "2292"]
[BlackElo "2422"]
[TimeControl "180+1"]
[EndTime "11:59:16 PDT"]
[Termination "freshfoodcompany won by resignation"]

1. d4 {[%clk 0:03:00.9]} 1... d5 {[%clk 0:02:59.4]} 2. c4 {[%clk 0:03:00.6]}
2... e6 {[%clk 0:02:59.9]} 3. Nc3 {[%clk 0:03:00.6]} 3... Nf6 {[%clk 0:03:00.2]}
4. cxd5 {[%clk 0:03:00.7]} 4... exd5 {[%clk 0:03:01.1]} 5. Bg5 {[%clk
0:03:00.5]} 5... c6 {[%clk 0:02:58.8]} 6. e3 {[%clk 0:03:00.4]} 6... Be7 {[%clk
0:02:58.7]} 7. Bd3 {[%clk 0:03:00.3]} 7... O-O {[%clk 0:02:57]} 8. Nge2 {[%clk
0:03:00.3]} 8... h6 {[%clk 0:02:56.9]} 9. Bh4 {[%clk 0:02:59.8]} 9... a5 {[%clk
0:02:55.5]} 10. O-O {[%clk 0:02:59.4]} 10... Na6 {[%clk 0:02:54.8]} 11. a3
{[%clk 0:02:58.3]} 11... Re8 {[%clk 0:02:54]} 12. Qc2 {[%clk 0:02:57.2]} 12...
Nc7 {[%clk 0:02:52.6]} 13. f3 {[%clk 0:02:56.5]} 13... c5 {[%clk 0:02:52.3]} 14.
dxc5 {[%clk 0:02:54.1]} 14... Bxc5 {[%clk 0:02:51.3]} 15. Nd1 {[%clk 0:02:41.4]}
15... b6 {[%clk 0:02:30.5]} 16. Nd4 {[%clk 0:02:36.2]} 16... Bd7 {[%clk
0:02:17.8]} 17. Bf2 {[%clk 0:02:31.4]} 17... Rc8 {[%clk 0:02:14.9]} 18. Qd2
{[%clk 0:02:29.4]} 18... Qe7 {[%clk 0:02:12.3]} 19. Rb1 {[%clk 0:02:26.7]} 19...
a4 {[%clk 0:02:10.2]} 20. Nc3 {[%clk 0:02:22.3]} 20... Ne6 {[%clk 0:02:04.4]}
21. Ndb5 {[%clk 0:02:11.3]} 21... Nc7 {[%clk 0:01:44.1]} 22. Nxc7 {[%clk
0:02:02.6]} 22... Rxc7 {[%clk 0:01:45]} 23. Rfe1 {[%clk 0:01:58.9]} 23... Bc6
{[%clk 0:01:29.6]} 24. Bc2 {[%clk 0:01:54]} 24... b5 {[%clk 0:01:20.8]} 25. e4
{[%clk 0:01:43.3]} 25... Bxf2+ {[%clk 0:01:11.4]} 26. Qxf2 {[%clk 0:01:41.9]}
26... dxe4 {[%clk 0:01:10.3]} 27. Nxe4 {[%clk 0:01:39.9]} 27... Bxe4 {[%clk
0:01:08.7]} 28. Bxe4 {[%clk 0:01:38.2]} 28... Qc5 {[%clk 0:00:59.4]} 29. Qxc5
{[%clk 0:01:15.6]} 29... Rxc5 {[%clk 0:01:00.3]} 30. Bd3 {[%clk 0:01:14.2]}
30... Kf8 {[%clk 0:00:57.3]} 31. Rxe8+ {[%clk 0:01:11.1]} 31... Kxe8 {[%clk
0:00:57.2]} 32. Re1+ {[%clk 0:01:08.3]} 32... Kd7 {[%clk 0:00:57.1]} 33. Re2
{[%clk 0:01:06.7]} 33... g6 {[%clk 0:00:54.8]} 34. Kf2 {[%clk 0:01:01.9]} 34...
Nd5 {[%clk 0:00:51.6]} 35. Be4 {[%clk 0:00:58.6]} 35... Nf4 {[%clk 0:00:50.7]}
36. Rd2+ {[%clk 0:00:58.3]} 36... Ke7 {[%clk 0:00:49]} 37. Ke3 {[%clk
0:00:55.4]} 37... g5 {[%clk 0:00:42.6]} 38. g3 {[%clk 0:00:55.1]} 38... Ne6
{[%clk 0:00:42.3]} 39. Rd5 {[%clk 0:00:53.3]} 39... Rxd5 {[%clk 0:00:22.9]} 40.
Bxd5 {[%clk 0:00:53.2]} 40... Nd8 {[%clk 0:00:23.2]} 41. Kd4 {[%clk 0:00:48.8]}
41... Kd6 {[%clk 0:00:22.4]} 42. h3 {[%clk 0:00:43.8]} 42... Ne6+ {[%clk
0:00:20.2]} 43. Bxe6 {[%clk 0:00:42.1]} 43... fxe6 {[%clk 0:00:20.1]} 44. f4
{[%clk 0:00:35.1]} 44... gxf4 {[%clk 0:00:17.9]} 45. gxf4 {[%clk 0:00:33.7]}
45... Kc6 {[%clk 0:00:14]} 46. Ke5 {[%clk 0:00:32.7]} 46... Kd7 {[%clk
0:00:13.8]} 47. h4 {[%clk 0:00:30.3]} 47... Ke7 {[%clk 0:00:11]} 48. h5 {[%clk
0:00:30.2]} 48... Kd7 {[%clk 0:00:06.1]} 49. Kf6 {[%clk 0:00:21.6]} 49... Kd6
{[%clk 0:00:04.3]} 50. Kg6 {[%clk 0:00:21.9]} 50... e5 {[%clk 0:00:04.3]} 51. f5
{[%clk 0:00:19.3]} 51... e4 {[%clk 0:00:04.1]} 52. f6 {[%clk 0:00:19.5]} 52...
e3 {[%clk 0:00:03.9]} 53. f7 {[%clk 0:00:19.9]} 53... Ke7 {[%clk 0:00:03.2]} 54.
Kg7 {[%clk 0:00:20.2]} 1-0

[Event "*** SCC Grand Prix: Titled Tuesday Blitz"]
[Site "Chess.com"]
[Date "2020.07.14"]
[Round "10"]
[White "PSvidler"]
[Black "Rodalquilar"]
[Result "1-0"]
[WhiteElo "2952"]
[BlackElo "2642"]
[TimeControl "180+1"]
[EndTime "11:59:19 PDT"]
[Termination "PSvidler won by checkmate"]

1. c4 {[%clk 0:03:00.9]} 1... e6 {[%clk 0:02:59.9]} 2. Nc3 {[%clk 0:02:58.6]}
2... d5 {[%clk 0:03:00.1]} 3. d4 {[%clk 0:02:58.4]} 3... a6 {[%clk 0:03:00.6]}
4. cxd5 {[%clk 0:02:54.7]} 4... exd5 {[%clk 0:03:01.5]} 5. Qb3 {[%clk
0:02:54.1]} 5... c5 {[%clk 0:03:01.5]} 6. e4 {[%clk 0:02:51.6]} 6... Nc6 {[%clk
0:02:54.3]} 7. Nf3 {[%clk 0:02:47.8]} 7... c4 {[%clk 0:02:26.8]} 8. Qd1 {[%clk
0:02:23.6]} 8... Bb4 {[%clk 0:02:26.8]} 9. exd5 {[%clk 0:02:18.1]} 9... Qxd5
{[%clk 0:02:26.4]} 10. Be2 {[%clk 0:02:15.2]} 10... Be6 {[%clk 0:02:25]} 11. O-O
{[%clk 0:02:15.1]} 11... Bxc3 {[%clk 0:02:25.5]} 12. bxc3 {[%clk 0:02:16]} 12...
Nf6 {[%clk 0:02:21.8]} 13. Ba3 {[%clk 0:02:10.2]} 13... Ne4 {[%clk 0:02:17.8]}
14. Qc2 {[%clk 0:02:07.2]} 14... Nd6 {[%clk 0:02:17.8]} 15. Nd2 {[%clk
0:02:04.2]} 15... Bf5 {[%clk 0:01:05.2]} 16. Qb2 {[%clk 0:02:02.9]} 16... Bd3
{[%clk 0:01:00]} 17. Bf3 {[%clk 0:01:59.4]} 17... Qb5 {[%clk 0:01:00]} 18. Rfe1+
{[%clk 0:01:46.1]} 18... Kd7 {[%clk 0:00:48.7]} 19. Qc1 {[%clk 0:01:45.8]} 19...
Rae8 {[%clk 0:00:45.2]} 20. Bxd6 {[%clk 0:01:40.5]} 20... Kxd6 {[%clk
0:00:44.8]} 21. Qa3+ {[%clk 0:01:36.8]} 21... Kc7 {[%clk 0:00:42.7]} 22. h4
{[%clk 0:01:33.8]} 22... Qa5 {[%clk 0:00:33.6]} 23. Qb2 {[%clk 0:01:33.5]} 23...
Qb5 {[%clk 0:00:33.2]} 24. Qc1 {[%clk 0:01:26.3]} 24... g5 {[%clk 0:00:28.8]}
25. a4 {[%clk 0:01:09.5]} 25... Qf5 {[%clk 0:00:28.7]} 26. Qa3 {[%clk
0:00:42.1]} 26... gxh4 {[%clk 0:00:28.6]} 27. d5 {[%clk 0:00:38.8]} 27... Ne5
{[%clk 0:00:24.5]} 28. d6+ {[%clk 0:00:39]} 28... Kb8 {[%clk 0:00:20.4]} 29. Qb4
{[%clk 0:00:33.6]} 29... Nxf3+ {[%clk 0:00:19.5]} 30. Nxf3 {[%clk 0:00:34.5]}
30... h3 {[%clk 0:00:19.4]} 31. Nd4 {[%clk 0:00:28.8]} 31... Qd5 {[%clk
0:00:12.1]} 32. f3 {[%clk 0:00:24.4]} 32... Rhg8 {[%clk 0:00:07.8]} 33. Re7
{[%clk 0:00:22.5]} 33... Rxg2+ {[%clk 0:00:03]} 34. Kh1 {[%clk 0:00:22.6]} 34...
Rxe7 {[%clk 0:00:03.9]} 35. dxe7 {[%clk 0:00:22.6]} 35... Re2 {[%clk 0:00:04.3]}
36. Rg1 {[%clk 0:00:19.6]} 36... Ka7 {[%clk 0:00:02.7]} 37. a5 {[%clk
0:00:19.6]} 37... Re6 {[%clk 0:00:01.5]} 38. Qb6+ {[%clk 0:00:16.7]} 38... Rxb6
{[%clk 0:00:01.5]} 39. axb6+ {[%clk 0:00:17.3]} 39... Kxb6 {[%clk 0:00:02.4]}
40. e8=Q {[%clk 0:00:17.6]} 40... Ka7 {[%clk 0:00:03]} 41. Qe3 {[%clk
0:00:17.2]} 41... Qc5 {[%clk 0:00:02.6]} 42. Rg8 {[%clk 0:00:14.3]} 42... a5
{[%clk 0:00:01.7]} 43. Rd8 {[%clk 0:00:11.4]} 43... a4 {[%clk 0:00:01.5]} 44.
Rd5 {[%clk 0:00:10.2]} 44... Qb6 {[%clk 0:00:01.4]} 45. Ra5+ {[%clk 0:00:08.5]}
45... Qxa5 {[%clk 0:00:01.3]} 46. Nc6+ {[%clk 0:00:08.5]} 46... Ka6 {[%clk
0:00:02.2]} 47. Nxa5 {[%clk 0:00:09.1]} 47... Kxa5 {[%clk 0:00:03.1]} 48. Qc5+
{[%clk 0:00:09.2]} 48... b5 {[%clk 0:00:03.1]} 49. Qa7# {[%clk 0:00:08.9]} 1-0

[Event "*** SCC Grand Prix: Titled Tuesday Blitz"]
[Site "Chess.com"]
[Date "2020.07.14"]
[Round "10"]
[White "Ze-Pequeno"]
[Black "Juanovic"]
[Result "1-0"]
[WhiteElo "2250"]
[BlackElo "2093"]
[TimeControl "180+1"]
[EndTime "11:59:21 PDT"]
[Termination "Ze-Pequeno won by resignation"]

1. e4 {[%clk 0:03:00.9]} 1... c5 {[%clk 0:02:59.8]} 2. Nf3 {[%clk 0:03:00.5]}
2... d6 {[%clk 0:02:59.9]} 3. d4 {[%clk 0:03:00.2]} 3... cxd4 {[%clk 0:03:00.2]}
4. Nxd4 {[%clk 0:03:00.5]} 4... Nf6 {[%clk 0:03:00.7]} 5. Nc3 {[%clk 0:03:00]}
5... g6 {[%clk 0:03:01]} 6. Be3 {[%clk 0:02:59.3]} 6... Bg7 {[%clk 0:03:01.1]}
7. f3 {[%clk 0:02:55.9]} 7... Nc6 {[%clk 0:03:01.2]} 8. Qd2 {[%clk 0:02:55.9]}
8... O-O {[%clk 0:03:01]} 9. O-O-O {[%clk 0:02:56.3]} 9... d5 {[%clk 0:02:51.5]}
10. exd5 {[%clk 0:02:56.3]} 10... Nxd5 {[%clk 0:02:51.2]} 11. Nxc6 {[%clk
0:02:56.5]} 11... bxc6 {[%clk 0:02:51.1]} 12. Bd4 {[%clk 0:02:56.6]} 12... e5
{[%clk 0:02:50.2]} 13. Bc5 {[%clk 0:02:56]} 13... Be6 {[%clk 0:02:50.2]} 14. Ne4
{[%clk 0:02:55.2]} 14... Re8 {[%clk 0:02:49.7]} 15. h4 {[%clk 0:02:53.6]} 15...
h5 {[%clk 0:02:35.3]} 16. Bc4 {[%clk 0:02:41.5]} 16... a5 {[%clk 0:02:13.9]} 17.
Qf2 {[%clk 0:02:12.4]} 17... a4 {[%clk 0:01:52.4]} 18. Ba3 {[%clk 0:01:57]}
18... Qa5 {[%clk 0:01:40.8]} 19. Nd6 {[%clk 0:01:19.3]} 19... Reb8 {[%clk
0:01:28.6]} 20. Rhe1 {[%clk 0:00:55.7]} 20... Qb6 {[%clk 0:00:13.4]} 21. Qxb6
{[%clk 0:00:50.8]} 21... Rxb6 {[%clk 0:00:14.3]} 22. Bc5 {[%clk 0:00:37.1]}
22... Rbb8 {[%clk 0:00:11.7]} 23. c3 {[%clk 0:00:33.2]} 23... Bh6+ {[%clk
0:00:09.7]} 24. Kc2 {[%clk 0:00:32.8]} 24... Bf8 {[%clk 0:00:07.9]} 25. Ne4
{[%clk 0:00:19.5]} 25... Bf5 {[%clk 0:00:05.9]} 26. Bxf8 {[%clk 0:00:17]} 26...
Rxf8 {[%clk 0:00:06.8]} 27. Bd3 {[%clk 0:00:16.8]} 27... Bxe4 {[%clk 0:00:04.7]}
28. Bxe4 {[%clk 0:00:16.1]} 28... Rfd8 {[%clk 0:00:03.8]} 29. g3 {[%clk
0:00:16]} 29... Kg7 {[%clk 0:00:03.8]} 30. a3 {[%clk 0:00:16.2]} 30... Rab8
{[%clk 0:00:03.9]} 31. c4 {[%clk 0:00:16.5]} 31... Ne7 {[%clk 0:00:03]} 32. Kc3
{[%clk 0:00:16.5]} 32... Kf6 {[%clk 0:00:02.9]} 33. Rxd8 {[%clk 0:00:15.2]}
33... Rxd8 {[%clk 0:00:03.8]} 34. Bc2 {[%clk 0:00:15.5]} 34... Rd4 {[%clk
0:00:04.3]} 35. Bxa4 {[%clk 0:00:15.1]} 35... c5 {[%clk 0:00:05.2]} 36. Bc2
{[%clk 0:00:14.9]} 36... Nf5 {[%clk 0:00:05.5]} 37. Be4 {[%clk 0:00:14.4]} 37...
Nxg3 {[%clk 0:00:05.6]} 38. a4 {[%clk 0:00:14.9]} 38... Nxe4+ {[%clk 0:00:05.9]}
39. fxe4 {[%clk 0:00:15.5]} 39... Ke6 {[%clk 0:00:06.3]} 40. a5 {[%clk
0:00:15.6]} 40... Rd6 {[%clk 0:00:06.3]} 41. Ra1 {[%clk 0:00:14.3]} 41... Ra6
{[%clk 0:00:06.9]} 42. b4 {[%clk 0:00:14.6]} 42... cxb4+ {[%clk 0:00:06.9]} 43.
Kxb4 {[%clk 0:00:15.5]} 43... f5 {[%clk 0:00:07.6]} 44. Kb5 {[%clk 0:00:15.5]}
44... Ra8 {[%clk 0:00:07.8]} 45. a6 {[%clk 0:00:15.4]} 45... f4 {[%clk 0:00:08]}
46. a7 {[%clk 0:00:15.5]} 46... g5 {[%clk 0:00:08.2]} 47. hxg5 {[%clk
0:00:14.9]} 47... h4 {[%clk 0:00:08.9]} 48. Kb6 {[%clk 0:00:15.2]} 48... h3
{[%clk 0:00:09.3]} 49. Kb7 {[%clk 0:00:15]} 49... Rh8 {[%clk 0:00:09]} 50. a8=Q
{[%clk 0:00:14.9]} 50... Rxa8 {[%clk 0:00:09]} 51. Kxa8 {[%clk 0:00:15.2]} 51...
f3 {[%clk 0:00:09.9]} 52. c5 {[%clk 0:00:13.1]} 52... f2 {[%clk 0:00:10.1]} 53.
c6 {[%clk 0:00:12.2]} 1-0

[Event "*** SCC Grand Prix: Titled Tuesday Blitz"]
[Site "Chess.com"]
[Date "2020.07.14"]
[Round "10"]
[White "exoticprincess"]
[Black "Sibelephant"]
[Result "1-0"]
[WhiteElo "2844"]
[BlackElo "3107"]
[TimeControl "180+1"]
[EndTime "11:59:24 PDT"]
[Termination "exoticprincess won by resignation"]

1. d4 {[%clk 0:03:00.9]} 1... Nf6 {[%clk 0:03:00]} 2. c4 {[%clk 0:03:01.1]} 2...
g6 {[%clk 0:03:00]} 3. Nc3 {[%clk 0:03:01.4]} 3... d5 {[%clk 0:03:00.7]} 4. Bg5
{[%clk 0:03:00.4]} 4... Bg7 {[%clk 0:02:59.9]} 5. e3 {[%clk 0:03:00.6]} 5... c5
{[%clk 0:02:47.6]} 6. dxc5 {[%clk 0:02:54.7]} 6... Qa5 {[%clk 0:02:41.7]} 7.
Bxf6 {[%clk 0:02:38.8]} 7... Bxf6 {[%clk 0:02:40.9]} 8. Rc1 {[%clk 0:02:39.1]}
8... dxc4 {[%clk 0:02:38]} 9. Bxc4 {[%clk 0:02:39.2]} 9... O-O {[%clk
0:02:33.9]} 10. Ne2 {[%clk 0:02:36.8]} 10... Qxc5 {[%clk 0:02:27.6]} 11. Bb3
{[%clk 0:02:31.3]} 11... Nc6 {[%clk 0:02:25.8]} 12. O-O {[%clk 0:02:30.6]} 12...
Qa5 {[%clk 0:02:21.7]} 13. h3 {[%clk 0:02:20.8]} 13... Rd8 {[%clk 0:02:17.1]}
14. Qe1 {[%clk 0:02:18]} 14... Bg7 {[%clk 0:02:02.6]} 15. Nf4 {[%clk 0:02:15.6]}
15... Bf5 {[%clk 0:01:56]} 16. Qe2 {[%clk 0:02:15.6]} 16... Be5 {[%clk
0:01:18.6]} 17. Qf3 {[%clk 0:02:04.3]} 17... Bxf4 {[%clk 0:01:04.9]} 18. Qxf4
{[%clk 0:02:03.9]} 18... Qe5 {[%clk 0:01:05.5]} 19. Qf3 {[%clk 0:01:56.9]} 19...
Be6 {[%clk 0:00:57.8]} 20. Bxe6 {[%clk 0:01:56.9]} 20... Qxe6 {[%clk 0:00:58.1]}
21. Rfd1 {[%clk 0:01:57.6]} 21... Rxd1+ {[%clk 0:00:53.4]} 22. Rxd1 {[%clk
0:01:56.9]} 22... Rd8 {[%clk 0:00:54]} 23. Rxd8+ {[%clk 0:01:56.2]} 23... Nxd8
{[%clk 0:00:54.2]} 24. Qd5 {[%clk 0:01:40.5]} 24... Qxd5 {[%clk 0:00:49.7]} 25.
Nxd5 {[%clk 0:01:41.4]} 25... Kf8 {[%clk 0:00:50.1]} 26. Kf1 {[%clk 0:01:41.6]}
26... Ke8 {[%clk 0:00:50.3]} 27. Ke2 {[%clk 0:01:41.8]} 27... Kd7 {[%clk
0:00:50.8]} 28. Kd3 {[%clk 0:01:42.4]} 28... Nc6 {[%clk 0:00:50.1]} 29. f4
{[%clk 0:01:34.1]} 29... Kd6 {[%clk 0:00:47.9]} 30. Nc3 {[%clk 0:01:33.1]} 30...
f5 {[%clk 0:00:32.9]} 31. e4 {[%clk 0:01:21.4]} 31... e6 {[%clk 0:00:32.9]} 32.
e5+ {[%clk 0:01:16.9]} 32... Kc5 {[%clk 0:00:33.1]} 33. a3 {[%clk 0:01:11.8]}
33... a5 {[%clk 0:00:31.3]} 34. Na4+ {[%clk 0:01:11.2]} 34... Kb5 {[%clk
0:00:31.7]} 35. Nc3+ {[%clk 0:01:10.7]} 35... Kc5 {[%clk 0:00:32.1]} 36. Ne2
{[%clk 0:00:55.9]} 36... b5 {[%clk 0:00:26.4]} 37. Ng1 {[%clk 0:00:45]} 37... a4
{[%clk 0:00:21.9]} 38. Nf3 {[%clk 0:00:44.7]} 38... h6 {[%clk 0:00:22.4]} 39. g3
{[%clk 0:00:41.4]} 39... Kd5 {[%clk 0:00:19.9]} 40. Nh4 {[%clk 0:00:40.2]} 40...
g5 {[%clk 0:00:16.1]} 41. Ng2 {[%clk 0:00:38.1]} 41... gxf4 {[%clk 0:00:15.6]}
42. gxf4 {[%clk 0:00:37.8]} 42... Na5 {[%clk 0:00:11.6]} 43. Ne3+ {[%clk
0:00:36.9]} 43... Kc5 {[%clk 0:00:12.2]} 44. Kc3 {[%clk 0:00:35.6]} 44... Nb3
{[%clk 0:00:08.8]} 45. Nc2 {[%clk 0:00:33.4]} 45... Kd5 {[%clk 0:00:04.9]} 46.
Kb4 {[%clk 0:00:33.6]} 46... Ke4 {[%clk 0:00:04]} 47. Kxb5 {[%clk 0:00:34]}
47... Kxf4 {[%clk 0:00:04.2]} 48. Kxa4 {[%clk 0:00:34.6]} 48... Nd2 {[%clk
0:00:03]} 49. b4 {[%clk 0:00:34.1]} 49... Kxe5 {[%clk 0:00:03.6]} 50. b5 {[%clk
0:00:33.9]} 50... Kd6 {[%clk 0:00:03.7]} 51. Ka5 {[%clk 0:00:32.1]} 51... f4
{[%clk 0:00:04]} 52. b6 {[%clk 0:00:31.3]} 52... Nc4+ {[%clk 0:00:04.2]} 53. Ka6
{[%clk 0:00:31.7]} 53... Nxb6 {[%clk 0:00:04.5]} 54. Kxb6 {[%clk 0:00:31.8]}
54... e5 {[%clk 0:00:05]} 55. a4 {[%clk 0:00:29.3]} 55... e4 {[%clk 0:00:05.9]}
56. a5 {[%clk 0:00:29.8]} 56... e3 {[%clk 0:00:03.6]} 57. a6 {[%clk 0:00:29.4]}
57... e2 {[%clk 0:00:04.4]} 58. Ne1 {[%clk 0:00:29.7]} 1-0